bitfinex-derivatives/quotes_ETHF0:USTF0_20251007
["timestamp","ask_amount","ask_price","bid_price","bid_amount"]
[1759848204473,1.15617082,4620.4,4619.9,5.97552001]
[1759848204674,1.1105,4623.3,4622.4,1.1366]
[1759848204874,1.1105,4623.3,4622.9,1.1366]
[1759848205173,1.1105,4623.4,4623.0,0.38908]
[1759848205381,1.49952,4623.8,4623.1,3.4278]
[1759848205565,3.6672,4624.0,4623.1,3.4278]
[1759848205566,3.2078,4624.0,4623.2,1.1366]
[1759848205765,3.2100517,4624.0,4623.9,1.1366]
[1759848205966,0.0022517,4624.0,4623.9,1.1366]
[1759848206171,0.0022517,4624.0,4623.9,1.3566]
[1759848206977,0.0022517,4624.0,4623.9,42.1566]
[1759848207180,0.0022517,4624.0,4623.9,40.8]
[1759848207478,1.1127517,4624.0,4623.9,0.22]
[1759848208076,1.1127517,4624.0,4623.4,40.8]
[1759848208077,1.1127517,4624.0,4623.4,41.18905]
[1759848208280,0.38901,4623.8,4623.3,4.3444]
[1759848208481,0.389,4623.9,4623.4,0.22]
[1759848208686,1.1105,4623.8,4623.4,0.22]
[1759848208893,1.1105,4623.7,4623.3,3.2078]
[1759848209085,0.38902,4623.8,4623.4,0.22]
[1759848209282,0.0022517,4624.0,4623.4,1.3566]
[1759848209587,0.0022517,4624.0,4623.3,3.59685]
[1759848209588,1.1105,4623.4,4623.3,3.2078]
[1759848209798,1.49955,4623.3,4623.2,0.00184188]
[1759848210887,6.49955,4623.3,4623.2,0.00184188]
[1759848213194,1.49955,4623.3,4623.2,0.00184188]
[1759848213394,1.1105,4623.3,4623.2,0.00184188]
[1759848214386,0.38901,4623.9,4623.2,0.00184188]
[1759848215099,1.0813,4623.3,4623.2,0.00184188]
[1759848216790,8.95281014,4623.3,4623.2,0.00184188]
[1759848217213,3.95281014,4623.3,4623.2,0.00184188]
[1759848217393,1.0813,4623.3,4623.2,0.00184188]
[1759848217593,6.0813,4623.3,4623.2,0.00184188]
[1759848217801,0.4405,4623.0,4622.2,0.22]
[1759848218095,1.0813,4622.3,4622.2,0.22]
[1759848218588,3.6483,4623.0,4622.1,3.2078]
[1759848218589,1.47045,4622.2,4622.1,3.2078]
[1759848218794,0.38919,4621.7,4621.6,3.2078]
[1759848218989,1.47049,4621.7,4621.6,3.2078]
[1759848219291,1.0813,4621.7,4621.6,3.2078]
[1759848219484,0.38918,4621.9,4621.6,3.2078]
[1759848219700,1.47048,4621.8,4621.6,3.2078]
[1759848219896,1.0813,4621.7,4621.6,3.43057658]
[1759848220093,1.0813,4622.4,4621.6,3.43057658]
[1759848220300,0.38917,4622.0,4621.6,3.43057658]
[1759848220491,1.0813,4622.4,4621.7,0.38918]
[1759848220698,1.0813,4622.4,4620.8,2.30045825]
[1759848220699,0.4297,4621.0,4620.5,1.16464069]
[1759848220993,0.4297,4621.0,4620.2,3.2078]
[1759848220994,0.3893,4620.5,4620.2,1.16464069]
[1759848221197,0.4297,4621.5,4620.4,4.37244069]
[1759848221492,1.0988,4621.6,4620.9,3.59705]
[1759848221693,1.48998481,4621.6,4621.1,0.38923]
[1759848221993,1.48998481,4621.6,4621.0,0.22]
[1759848221994,0.4297,4621.5,4620.9,3.21011336]
[1759848222192,1.5285,4621.0,4620.9,0.00231336]
[1759848224193,0.4297,4621.5,4620.9,0.00231336]
[1759848224395,0.00198481,4621.6,4621.5,0.7406]
[1759848224595,0.00198481,4621.6,4621.5,0.9606]
[1759848224790,0.00198481,4621.6,4621.5,5.9606]
[1759848225398,0.00198481,4621.6,4621.5,6.1863]
[1759848226200,0.00198481,4621.6,4621.5,9.3941]
[1759848226508,3.2078,4622.6,4621.7,0.7406]
[1759848226699,3.59692,4622.6,4622.5,0.7406]
[1759848227000,0.38913,4622.4,4621.8,40.8]
[1759848227299,0.38913,4622.4,4622.0,0.7406]
[1759848227504,0.39180624,4622.4,4622.0,0.7406]
[1759848227704,0.39180624,4622.4,4622.3,0.7406]
[1759848227905,0.00267624,4622.4,4622.3,0.9606]
[1759848228501,0.00267624,4622.4,4622.3,5.9606]
[1759848229394,0.00267624,4622.4,4622.3,6.12187694]
[1759848229799,0.00267624,4622.4,4622.3,0.38127694]
[1759848230306,0.00267624,4622.4,4622.3,1.12187694]
[1759848231508,0.00267624,4622.4,4622.3,6.12187694]
[1759848232907,3.59685,4623.3,4623.2,0.7379]
[1759848233108,3.59685,4623.3,4623.2,0.22]
[1759848233409,0.38904,4623.6,4623.2,0.22]
[1759848233605,0.38902,4623.7,4623.2,0.9579]
[1759848233912,0.38904,4623.6,4623.4,0.38904]
[1759848234109,1.0988,4623.6,4623.5,0.22]
[1759848234303,0.00252258,4623.7,4623.6,0.38903]
[1759848235004,0.00252258,4623.7,4623.2,0.7379]
[1759848235005,1.0988,4623.6,4623.2,0.7379]
[1759848235212,1.0988,4623.5,4622.6,3.9457]
[1759848235508,1.4879,4622.8,4622.6,3.2078]
[1759848235703,1.0988,4622.7,4622.6,3.2078]
[1759848235904,1.0988,4622.7,4622.6,3.4278]
[1759848236205,1.0988,4623.0,4622.8,0.38909]
[1759848236401,0.38904,4623.5,4623.2,0.38906]
[1759848236601,0.38904,4623.5,4623.3,0.22]
[1759848236801,1.0988,4623.4,4623.3,0.22]
[1759848237002,0.39154258,4623.7,4623.3,0.60905]
[1759848237200,1.0988,4623.6,4623.3,0.60905]
[1759848237601,1.0988,4623.6,4623.3,0.22]
[1759848237810,1.0988,4623.6,4623.3,0.9579]
[1759848238111,1.0988,4623.6,4623.4,0.60904]
[1759848238408,1.48783,4623.6,4623.4,0.60904]
[1759848238606,1.0988,4623.4,4622.6,3.2078]
[1759848238904,1.0988,4622.7,4622.6,3.2078]
[1759848239103,1.0988,4622.7,4622.6,3.4278]
[1759848239300,3.2078,4623.3,4622.6,3.4278]
[1759848239502,1.0988,4623.4,4622.7,0.7379]
[1759848239805,0.00252258,4623.7,4622.7,0.7379]
[1759848240011,0.00252258,4623.7,4623.4,0.38904]
[1759848240310,0.00252258,4623.7,4623.6,0.7379]
[1759848240613,0.00252258,4623.7,4623.4,0.38904]
[1759848240614,0.38904,4623.6,4623.4,0.38904]
[1759848240807,1.0988,4623.3,4623.2,3.2078]
[1759848241007,1.0988,4623.3,4622.7,0.7379]
[1759848241008,0.38908,4623.0,4622.9,0.38908]
[1759848241201,0.38908,4623.0,4622.9,0.60908]
[1759848241406,0.3891,4622.9,4622.7,0.7379]
[1759848241710,0.3891,4622.8,4622.6,0.38911]
[1759848241909,0.3891,4622.8,4622.7,0.22]
[1759848242106,1.48791,4622.7,4622.5,3.2078]
[1759848242304,1.0988,4622.6,4622.5,3.2078]
[1759848242504,1.0988,4622.6,4622.5,3.4278]
[1759848242999,1.0988,4622.6,4622.0,40.8]
[1759848243000,0.38916,4622.1,4622.0,44.39696]
[1759848243203,0.38916,4622.1,4622.0,44.17424101]
[1759848243508,0.38911,4622.7,4621.6,1.16464069]
[1759848243509,1.1002,4621.7,4621.6,1.16464069]
[1759848243705,1.1002,4621.6,4621.5,1.55384069]
[1759848244004,0.38919,4621.7,4621.5,42.35384069]
[1759848244213,0.38919,4621.8,4621.6,1.38464069]
[1759848244403,0.38919,4621.8,4621.6,1.16464069]
[1759848244604,0.38919,4621.8,4621.7,0.22]
[1759848245016,1.1002,4622.4,4621.8,0.38918]
[1759848245215,1.1002,4622.4,4621.7,0.60919]
[1759848245216,0.38917,4621.9,4621.7,0.60919]
[1759848245407,0.38917,4621.9,4621.8,0.22]
[1759848246712,0.38917,4622.0,4621.9,0.38917]
[1759848247035,3.2078,4622.4,4622.3,0.7485]
[1759848247309,4.7377,4623.5,4622.6,0.7485]
[1759848247612,4.7377,4623.5,4623.1,0.38907]
[1759848249209,1.48925,4623.3,4623.2,0.22]
[1759848249609,0.38908,4623.1,4622.9,41.18909]
[1759848249909,1.48928,4623.1,4623.0,0.22]
[1759848250306,1.48925,4623.4,4623.2,0.38906]
[1759848250509,0.38906,4623.2,4623.1,0.7485]
[1759848251305,0.38906,4623.2,4623.0,0.22]
[1759848251611,1.1002,4623.1,4623.0,0.22]
[1759848251801,0.38906,4623.2,4623.0,0.22]
[1759848252001,0.38906,4623.2,4623.1,0.7485]
[1759848252310,1.1002,4623.1,4623.0,0.22]
[1759848252506,0.97261,4623.5,4622.2,1.16464069]
[1759848252507,0.38914,4622.3,4622.2,1.16464069]
[1759848252711,1.1002,4622.0,4621.9,1.16464069]
[1759848253012,0.38919,4621.7,4621.6,1.55384069]
[1759848253215,0.38919,4621.7,4621.6,0.6092]
[1759848253411,0.38919,4621.7,4621.6,0.22]
[1759848253713,1.48939,4621.7,4621.5,44.0078]
[1759848253915,1.1002,4622.4,4621.6,0.6092]
[1759848254211,0.38918,4621.8,4621.7,1.38585499]
[1759848254406,0.38918,4621.8,4621.7,0.22]
[1759848254810,1.48938,4621.8,4621.7,0.22]
[1759848255010,0.3892,4621.6,4621.5,0.9122595]
[1759848255211,0.3892,4621.6,4621.5,1.3014595]
[1759848255412,0.38919,4621.7,4621.6,0.7485]
[1759848255909,0.38919,4621.7,4621.6,0.22]
[1759848256111,0.38919,4621.7,4621.5,0.1637595]
[1759848256310,0.38919,4621.7,4621.4,40.8]
[1759848256311,0.38921,4621.5,4621.4,41.5485]
[1759848256510,0.3892,4621.6,4621.4,42.15771]
[1759848256811,0.3892,4621.6,4621.5,0.7485]
[1759848257007,0.3892,4621.6,4621.5,0.22]
[1759848257207,0.38924,4621.1,4621.0,1.54573406]
[1759848257405,1.5458,4621.0,4620.9,0.00231336]
[1759848257810,1.5458,4621.0,4620.9,0.22231336]
[1759848258405,1.5458,4621.0,4620.9,0.00231336]
[1759848258608,1.5458,4621.0,4620.9,0.22231336]
[1759848258808,1.5458,4621.0,4620.2,1.54573406]
[1759848258809,1.48951,4620.3,4620.2,1.54573406]
[1759848259011,1.5458,4620.0,4619.4,1.94241847]
[1759848259212,0.38935,4619.8,4619.7,1.55381549]
[1759848259515,1.1002,4619.9,4619.7,0.22]
[1759848259719,1.49157466,4619.9,4619.8,1.55373898]
[1759848260012,1.1002,4619.8,4619.7,0.00244165]
[1759848260220,1.1002,4619.8,4619.7,1.77546346]
[1759848260712,1.1002,4619.8,4619.7,0.22244165]
[1759848261109,1.1002,4619.8,4619.7,1.55536393]
[1759848261418,0.00203466,4619.9,4619.8,1.0544]
[1759848261621,0.00203466,4619.9,4619.8,1.2744]
[1759848261810,0.00203466,4619.9,4619.8,1.0544]
[1759848262007,0.00203466,4619.9,4619.8,1.2744]
[1759848262211,0.00203466,4619.9,4619.8,2.82732228]
[1759848262407,0.00203466,4619.9,4619.8,1.2744]
[1759848264422,0.00203466,4619.9,4619.8,2.60578583]
[1759848264622,1.48955,4619.8,4619.7,0.00244165]
[1759848264819,1.48955,4619.8,4619.7,0.22244165]
[1759848265013,1.48955,4619.8,4619.7,0.00244165]
[1759848265215,4.69735,4619.8,4619.7,0.00244165]
[1759848265416,4.69735,4619.8,4619.7,0.22244165]
[1759848265813,3.59715,4619.8,4619.7,0.22244165]
[1759848266015,3.59715,4619.8,4619.7,1.27684165]
[1759848266610,0.00203466,4619.9,4619.7,1.27684165]
[1759848266811,4.308,4619.8,4619.7,0.00244165]
[1759848267223,0.00203466,4619.9,4619.8,1.0544]
[1759848267424,0.00203466,4619.9,4619.8,1.2744]
[1759848267629,0.00203466,4619.9,4619.8,4.4822]
[1759848267811,0.00203466,4619.9,4619.8,1.2744]
[1759848268015,1.48955,4619.8,4619.7,0.00244165]
[1759848268211,1.48955,4619.8,4619.7,0.22244165]
[1759848268617,0.38935,4619.8,4619.7,1.27684165]
[1759848269619,1.48955,4619.8,4619.7,0.00244165]
[1759848269926,1.48955,4619.8,4619.7,0.22244165]
[1759848270225,1.48955,4619.8,4619.7,1.27684165]
[1759848270523,0.38935,4619.8,4619.7,1.27684165]
[1759848271524,1.48955,4619.8,4619.7,0.22244165]
[1759848272219,1.1002,4619.8,4619.7,1.27684165]
[1759848272621,4.308,4619.8,4619.7,0.22244165]
[1759848272818,4.308,4619.8,4619.7,0.00244165]
[1759848273021,4.308,4619.8,4619.7,0.22244165]
[1759848273515,0.00203466,4619.9,4619.8,1.1036]
[1759848273921,0.38927,4620.8,4620.1,0.97332]
[1759848274121,3.59705,4621.0,4620.8,0.38926]
[1759848274425,3.2078,4621.0,4620.9,1.3236]
[1759848274828,3.20943857,4621.0,4620.9,1.3236]
[1759848275217,0.00163857,4621.0,4620.6,1.1036]
[1759848275426,0.00163857,4621.0,4620.8,1.1036]
[1759848275724,0.00163857,4621.0,4620.9,4.3114]
[1759848276429,3.2078,4622.1,4621.0,1.5174]
[1759848276730,0.38918,4621.8,4621.7,1.49278]
[1759848276928,0.38918,4621.8,4621.7,1.71278]
[1759848277128,0.38918,4621.8,4621.7,1.3236]
[1759848277532,0.39197868,4621.8,4621.7,1.3236]
[1759848278127,0.39197868,4621.8,4621.7,1.1036]
[1759848278623,3.2078,4622.6,4622.1,0.38915]
[1759848278826,3.2078,4622.6,4622.2,1.2759]
[1759848279032,3.2078,4622.6,4622.5,0.4417]
[1759848279229,3.2078,4622.6,4622.5,1.7176]
[1759848279629,3.21060353,4622.6,4622.5,1.7176]
[1759848280430,0.00280353,4622.6,4622.5,4.9254]
[1759848280638,3.2078,4623.7,4622.5,9.8423]
[1759848280836,3.2078,4623.7,4623.2,1.0559]
[1759848281145,0.38918,4621.8,4621.7,1.0559]
[1759848281335,0.38917,4622.0,4621.7,1.66508]
[1759848281536,0.38918,4621.9,4621.8,1.0559]
[1759848281841,0.39125745,4621.9,4621.8,1.05783315]
[1759848282043,0.00207745,4621.9,4621.8,1.05783315]
[1759848282535,3.82217368,4624.9,4622.6,1.0559]
[1759848282536,2.01175,4623.3,4622.6,1.0559]
[1759848282732,3.2078,4623.4,4623.1,1.0559]
[1759848282934,3.2078,4623.4,4623.3,1.0559]
[1759848283743,3.2100632,4623.4,4623.3,1.0559]
[1759848284532,0.0022632,4623.4,4623.3,1.0559]
[1759848285734,0.0022632,4623.4,4623.3,4.2637]
[1759848286142,0.0022632,4623.4,4623.3,4.4827]
[1759848286838,0.0022632,4623.4,4623.3,4.2637]
[1759848287030,0.0022632,4623.4,4623.3,4.4827]
[1759848288540,3.2078,4624.6,4623.6,1.0559]
[1759848288740,3.2078,4624.6,4624.0,0.4417]
[1759848288937,0.38897,4624.4,4624.3,1.0559]
[1759848289337,3.2078,4624.6,4624.3,1.0559]
[1759848289640,0.38895,4624.5,4624.4,1.2749]
[1759848289943,3.21008954,4624.6,4624.5,1.4976]
[1759848290837,0.00228954,4624.6,4624.5,1.4976]
[1759848291442,0.00228954,4624.6,4624.5,1.7166]
[1759848293144,0.00228954,4624.6,4624.5,1.4976]
[1759848293339,3.2078,4625.1,4624.5,1.7166]
[1759848293542,1.94389,4626.7,4625.3,0.38888]
[1759848293543,3.2078,4625.6,4625.3,0.38888]
[1759848293844,0.38887,4625.5,4625.4,1.0559]
[1759848294042,0.3889,4625.1,4625.0,41.8559]
[1759848294346,1.0391,4625.0,4624.0,3.2078]
[1759848294639,3.2098358,4625.1,4624.1,1.2749]
[1759848294640,0.38894,4624.7,4624.1,1.2749]
[1759848294846,3.2098358,4625.1,4624.2,41.8559]
[1759848295044,0.38891,4625.0,4624.6,1.0559]
[1759848295240,0.38891,4625.0,4624.8,1.0559]
[1759848295443,0.38892,4625.0,4624.8,0.38892]
[1759848295645,1.42801,4625.0,4624.9,0.219]
[1759848296245,1.42801,4625.0,4624.9,1.2749]
[1759848296445,0.38891,4625.0,4624.9,1.2749]
[1759848296646,3.2098358,4625.1,4625.0,0.38891]
[1759848296842,0.0020358,4625.1,4625.0,1.44481]
[1759848297047,0.38891,4625.0,4624.7,1.44483]
[1759848297248,1.0391,4624.9,4624.8,0.219]
[1759848297448,1.0391,4624.9,4624.8,1.2749]
[1759848297645,0.0020358,4625.1,4624.8,0.219]
[1759848297847,1.0411358,4625.1,4624.9,1.0559]
[1759848298045,0.0020358,4625.1,4625.0,1.0559]
[1759848298248,0.0020358,4625.1,4625.0,1.4976]
[1759848300443,0.0020358,4625.1,4624.8,0.38893]
[1759848300645,1.0411358,4625.1,4624.9,1.66382]
[1759848300841,0.0020358,4625.1,4624.5,3.6495]
[1759848301046,3.2078,4624.9,4624.6,0.219]
[1759848301245,0.0020358,4625.1,4625.0,1.0559]
[1759848301547,0.0020358,4625.1,4625.0,1.7166]
[1759848302245,0.0020358,4625.1,4625.0,1.4976]
[1759848302545,1.1150358,4625.1,4625.0,1.2749]
[1759848302748,0.0020358,4625.1,4625.0,1.4897]
[1759848302953,0.0020358,4625.1,4625.0,1.2749]
[1759848303648,0.0020358,4625.1,4625.0,1.7087]
[1759848304746,3.2078,4627.1,4626.0,0.4338]
[1759848305046,0.38877,4626.8,4626.5,0.82258]
[1759848305247,1.113,4627.0,4626.6,0.219]
[1759848305444,0.97189,4626.9,4626.3,1.0997]
[1759848305641,0.38879,4626.5,4626.4,1.3187]
[1759848307147,0.38879,4626.5,4626.4,1.0997]
[1759848307453,0.38879,4626.5,4626.4,1.3187]
[1759848307653,0.38879,4626.5,4626.4,1.0997]
[1759848307850,0.38879,4626.5,4626.2,1.0997]
[1759848307851,0.3888,4626.3,4626.2,1.0997]
[1759848308150,0.3888,4626.3,4626.2,1.3187]
[1759848308453,0.3888,4626.3,4626.2,1.0997]
[1759848308649,0.3888,4626.3,4626.2,1.3187]
[1759848309347,3.2078,4626.6,4626.2,0.219]
[1759848309541,0.3888,4626.3,4626.2,0.219]
[1759848309743,0.38884,4625.9,4625.7,3.2078]
[1759848309944,0.38884,4625.9,4625.8,1.0997]
[1759848310150,1.50184,4625.9,4625.8,0.219]
[1759848310354,1.50184,4625.9,4625.7,3.2078]
[1759848310653,1.113,4626.5,4625.8,1.0997]
[1759848310848,0.38884,4625.8,4625.7,4.3075]
[1759848311054,1.50184,4625.8,4625.7,1.0997]
[1759848311256,1.50184,4625.8,4625.7,0.219]
[1759848311450,0.38884,4625.8,4625.7,0.219]
[1759848311657,0.38889,4625.4,4625.3,1.0997]
[1759848311852,1.113,4625.2,4624.8,1.0997]
[1759848312057,0.38895,4624.6,4624.0,0.43606219]
[1759848312256,0.38896,4624.5,4624.3,1.0997]
[1759848312452,1.5591,4625.5,4624.6,1.0997]
[1759848312653,0.38895,4624.6,4624.5,1.5335]
[1759848312853,0.38895,4624.6,4624.5,1.7525]
[1759848313255,0.38895,4624.6,4624.5,1.0997]
[1759848313559,0.38895,4624.6,4624.5,1.3187]
[1759848313751,0.38895,4624.6,4624.5,1.0997]
[1759848313954,0.38895,4624.6,4624.5,1.3187]
[1759848314363,0.38899,4624.1,4624.0,1.92475219]
[1759848314562,0.38899,4624.1,4624.0,1.10196219]
[1759848314758,1.50199,4624.1,4624.0,0.22126219]
[1759848314962,1.50199,4624.1,4624.0,1.32096219]
[1759848315256,1.50199,4624.1,4624.0,0.22126219]
[1759848315760,1.50199,4624.1,4624.0,0.00226219]
[1759848316163,6.50199,4624.1,4624.0,0.00226219]
[1759848317561,1.50199,4624.1,4624.0,0.00226219]
[1759848317762,0.38899,4624.1,4624.0,1.32096219]
[1759848318054,0.38899,4624.1,4624.0,1.75476219]
[1759848318253,0.38899,4624.1,4624.0,1.53576219]
[1759848318456,0.38899,4624.1,4624.0,1.75476219]
[1759848318659,1.113,4624.4,4624.1,1.0997]
[1759848318860,0.38898,4624.2,4624.0,0.22126219]
[1759848319064,1.113,4624.1,4624.0,0.00226219]
[1759848319465,3.2078,4624.7,4624.1,1.48869]
[1759848319665,3.59674,4624.7,4624.5,0.38895]
[1759848319864,3.2078,4624.7,4624.6,1.3187]
[1759848320364,0.38893,4624.8,4624.7,1.0997]
[1759848322661,3.2078,4625.4,4625.0,1.0997]
[1759848322868,0.38889,4625.3,4625.2,1.0997]
[1759848323070,0.38889,4625.3,4625.2,1.3187]
[1759848323365,4.3208,4626.8,4625.9,1.0997]
[1759848323663,3.2078,4626.8,4626.0,0.6528]
[1759848323862,4.3208,4627.4,4626.6,0.38877]
[1759848324061,4.3208,4627.4,4626.8,1.0997]
[1759848324258,0.38875,4627.0,4626.8,1.0997]
[1759848324471,3.2298,4627.9,4626.8,1.48846]
[1759848324764,0.38869,4627.7,4626.8,1.48846]
[1759848324964,3.2298,4627.9,4627.7,0.38868]
[1759848325171,3.2298,4627.9,4627.8,1.3187]
[1759848325464,0.022,4627.9,4627.8,4.5265]
[1759848325967,0.02369264,4627.9,4627.8,1.32058374]
[1759848326568,0.02369264,4627.9,4627.8,1.49095731]
[1759848328565,0.02369264,4627.9,4627.8,4.69875731]
[1759848328765,0.02369264,4627.9,4627.8,9.69875731]
[1759848328969,0.97174,4627.6,4627.1,1.0997]
[1759848329162,0.38868,4627.8,4627.3,1.0997]
[1759848329474,0.02369264,4627.9,4627.8,1.0997]
[1759848329666,0.02369264,4627.9,4627.8,1.3187]
[1759848330068,0.02369264,4627.9,4627.8,1.10163901]
[1759848330362,0.41236264,4627.9,4627.8,0.00193901]
[1759848330666,1.52536264,4627.9,4627.8,0.22093901]
[1759848330872,1.52536264,4627.9,4627.8,0.00193901]
[1759848331169,6.52536264,4627.9,4627.8,0.00193901]
[1759848331559,6.52536264,4627.9,4627.8,1.10163901]
[1759848331560,0.02369264,4627.9,4627.8,1.10163901]
[1759848332377,0.02369264,4627.9,4627.8,1.49031901]
[1759848332968,3.2078,4629.7,4629.0,0.4359]
[1759848333266,1.0828,4629.3,4628.5,1.1015]
[1759848333465,1.0828,4629.3,4628.6,0.219]
[1759848333466,0.3886,4628.8,4628.6,0.219]
[1759848333667,0.3886,4628.8,4628.7,1.1015]
[1759848333875,0.83802162,4628.8,4628.7,0.219]
[1759848334072,0.38863,4628.5,4628.1,0.38865]
[1759848334267,1.53223162,4628.8,4628.0,0.4359]
[1759848334268,0.00280557,4628.8,4628.7,1.1015]
[1759848334474,1.0828,4629.9,4628.8,1.1015]
[1759848334475,3.2078,4629.9,4628.8,1.1015]
[1759848334673,0.38854,4629.5,4629.1,1.1015]
[1759848334875,0.38854,4629.5,4629.0,0.4359]
[1759848334876,0.44652325,4629.4,4629.3,1.1015]
[1759848335376,0.44908086,4629.4,4629.3,1.1015]
[1759848335780,3.65688086,4629.4,4629.3,1.1015]
[1759848335973,3.65688086,4629.4,4629.3,0.219]
[1759848336173,4.73968086,4629.4,4629.3,0.219]
[1759848336377,4.73968086,4629.4,4628.7,1.1015]
[1759848336577,0.38859,4628.8,4628.7,1.1015]
[1759848336870,0.38859,4628.8,4628.3,3.2078]
[1759848336871,0.38861,4628.7,4628.4,1.1015]
[1759848337071,0.38861,4628.7,4628.6,1.1015]
[1759848338078,3.2078,4629.3,4628.7,0.3886]
[1759848338272,0.44619122,4629.2,4628.9,1.0108]
[1759848338472,0.38861,4628.7,4628.3,0.38863]
[1759848338772,0.38861,4628.6,4628.5,1.0108]
[1759848338969,1.0482,4629.2,4628.6,0.38861]
[1759848339168,0.44593313,4629.1,4628.8,1.0108]
[1759848339480,0.3886,4628.7,4628.6,1.0108]
[1759848339874,0.38863,4628.3,4628.2,45.0186]
[1759848340075,0.38863,4628.3,4628.2,45.2376]
[1759848340475,3.2078,4629.3,4628.5,0.38861]
[1759848340680,3.2078,4629.3,4628.8,1.0108]
[1759848340974,0.38858,4629.0,4628.9,0.219]
[1759848341370,0.3886,4628.7,4628.6,1.0108]
[1759848342074,0.3886,4628.7,4628.6,1.2298]
[1759848343179,0.97155,4628.5,4627.8,0.00193901]
[1759848343381,0.38867,4627.9,4627.8,0.00193901]
[1759848343580,1.43687,4627.9,4627.8,0.22093901]
[1759848344379,6.43687,4627.9,4627.8,0.00193901]
[1759848345181,0.38878,4626.6,4626.1,1.0108]
[1759848345384,1.43698,4626.6,4626.2,0.219]
[1759848345582,1.0482,4626.3,4625.7,4.75817662]
[1759848345777,1.43701,4626.3,4625.9,1.0108]
[1759848345980,1.43701,4626.3,4626.0,0.219]
[1759848346181,0.38881,4626.3,4626.0,0.22104476]
[1759848346486,0.38881,4626.3,4626.1,1.0108]
[1759848346681,3.2078,4627.0,4626.0,0.00204476]
[1759848346682,1.43702,4626.1,4626.0,0.00204476]
[1759848346883,1.05041433,4626.1,4626.0,0.00204476]
[1759848347083,1.43923433,4626.1,4626.0,0.00204476]
[1759848347384,1.0482,4625.8,4625.5,0.16551782]
[1759848347590,1.43706,4625.6,4625.5,0.16551782]
[1759848347786,1.43708,4625.4,4625.3,1.55037662]
[1759848347984,1.0482,4625.7,4625.3,1.55037662]
[1759848348179,0.38888,4625.5,4625.4,1.0108]
[1759848348384,1.43708,4625.5,4625.4,1.55278]
[1759848348590,1.43708,4625.5,4625.4,0.22140338]
[1759848348992,6.85308,4625.5,4625.4,0.00240338]
[1759848349690,6.85308,4625.5,4625.4,1.55278]
[1759848350593,6.85308,4625.5,4625.4,1.54951339]
[1759848351194,6.85308,4625.5,4625.4,0.00240338]
[1759848351493,6.85308,4625.5,4625.4,1.54951339]
[1759848351701,6.85308,4625.5,4625.4,0.00240338]
[1759848352096,6.85308,4625.5,4625.4,1.55014551]
[1759848352296,6.85308,4625.5,4625.4,0.00240338]
[1759848352498,6.85308,4625.5,4625.4,3.38e-06]
[1759848352700,6.85308,4625.5,4625.4,1.54874474]
[1759848352902,1.43712,4624.9,4624.8,1.94241847]
[1759848353191,1.43712,4624.9,4624.7,1.94241847]
[1759848353192,1.0482,4624.8,4624.7,1.94241847]
[1759848353801,1.0482,4624.6,4624.5,1.94241847]
[1759848354002,1.0482,4624.6,4624.5,1.94473932]
[1759848354404,1.0482,4624.6,4624.5,0.00232085]
[1759848354800,6.0482,4624.6,4623.9,2.71938586]
[1759848355106,0.38908,4623.0,4622.9,1.03243168]
[1759848355306,3.1596871,4623.0,4622.9,1.03243168]
[1759848355506,3.5487671,4623.0,4622.9,1.03243168]
[1759848355909,0.38907,4623.2,4623.0,0.4106]
[1759848356206,3.59684,4623.5,4623.0,0.4106]
[1759848356406,3.59684,4623.5,4623.1,1.0108]
[1759848356606,3.2078,4623.5,4623.1,1.0108]
[1759848356809,0.38902,4623.7,4623.5,0.4106]
[1759848356999,3.2078,4624.3,4623.6,1.0108]
[1759848357205,0.38901,4623.9,4623.6,1.2298]
[1759848357404,3.2078,4624.3,4623.6,1.2298]
[1759848357603,0.38902,4623.8,4623.7,0.219]
[1759848357804,0.38902,4623.8,4623.7,1.0108]
[1759848358006,0.38906,4623.2,4623.1,1.0108]
[1759848358199,2.0207,4624.0,4623.2,1.0108]
[1759848358200,0.38905,4623.4,4623.2,1.0108]
[1759848358402,0.38906,4623.3,4623.2,1.0108]
[1759848358710,0.38905,4623.4,4623.3,1.0108]
[1759848358910,3.2078,4623.8,4623.0,0.79968]
[1759848359209,0.38906,4623.3,4623.0,0.4106]
[1759848359598,0.38906,4623.3,4623.1,0.219]
[1759848359805,3.2078,4623.8,4623.2,1.0108]
[1759848360004,0.38904,4623.6,4623.5,1.4214]
[1759848360405,0.38904,4623.6,4623.5,1.0108]
[1759848360606,0.38904,4623.6,4623.5,1.4214]
[1759848360805,3.2078,4624.3,4623.6,1.0108]
[1759848361007,0.38902,4623.7,4623.6,1.0108]
[1759848361299,0.38901,4623.9,4623.6,1.0108]
[1759848361612,0.38902,4623.8,4623.7,1.0108]
[1759848362213,0.38902,4623.8,4623.7,1.2298]
[1759848362410,3.2078,4624.3,4623.7,1.2298]
[1759848362610,0.38901,4623.9,4623.8,1.0448]
[1759848363608,0.219,4624.6,4623.8,3.2078]
[1759848363814,0.38894,4624.7,4624.5,0.4061]
[1759848364009,0.38894,4624.7,4624.6,1.0448]
[1759848364406,4.2977,4625.9,4624.6,1.0448]
[1759848364708,0.38888,4625.4,4625.1,1.0448]
[1759848364914,3.2078,4625.9,4625.4,0.38888]
[1759848365107,3.2078,4625.9,4625.6,1.0448]
[1759848365108,0.38886,4625.7,4625.6,1.0448]
[1759848365307,0.38886,4625.7,4625.6,1.2638]
[1759848365709,0.38881,4626.2,4626.0,1.4509]
[1759848365905,0.3888,4626.3,4626.0,1.6699]
[1759848366104,3.2078,4626.5,4626.0,1.6699]
[1759848366304,0.222,4628.5,4626.7,1.0448]
[1759848366305,0.3887,4627.2,4626.7,1.0448]
[1759848366512,0.38868,4627.4,4627.1,1.0448]